[Event "Djerba Festival Open-B 2025"]
[Site "Djerba"]
[Date "2025.02.18"]
[Round "4.26"]
[White "Chelli, Hichem"]
[Black "Feurprier, Matteo"]
[Result "1-0"]
[Annotator "NA"]
[ECO "D55"]
[WhiteElo "1763"]
[BlackElo "1537"]
[PlyCount "80"]
[EventDate "2025.02.15"]
[EventType "swiss"]
[EventCountry "TUN"]
[SourceTitle "playchess.com"]
[Source "ChessBase"]
[SourceQuality "1"]
[TimeControl "5400+30"]

1. d4 {[%emt 1:31:00]} d5 {[%emt 1:31:00]} 2. c4 {[%emt 0:00:30]} e6 {[%emt 0:00:30]} 3. Nc3 {[%emt 0:00:30]} Nf6 {[%emt 0:00:30]} 4. Bg5 {[%emt 0:00:30]} Be7 {[%emt 0:00:30]} 5. e3 {[%emt 0:00:30]} c6 {[%emt 0:00:30]} 6. Nf3 {[%emt 0:00:30]} Nbd7 {[%emt 0:00:30]} 7. Rc1 {[%emt 0:00:30]} b6 {[%emt 0:00:30]} 8. Bd3 {[%emt 0:00:30]} Bb7 {[%emt 0:00:30]} 9. cxd5 {[%emt 0:00:30]} exd5 {[%emt 0:00:30]} 10. O-O {[%emt 0:00:30]} O-O {[%emt 0:00:30]} 11. a3 {[%emt 0:00:30]} c5 {[%emt 0:00:30]} 12. Qc2 {[%emt 0:00:30]} h6 {[%emt 0:00:30]} 13. Bh4 {[%emt 0:00:30]} Ne4 {[%emt 0:00:30]} 14. Bxe7 {[%emt 0:00:30]} Qxe7 {[%emt 0:00:30]} 15. Rfe1 {[%emt 0:00:30]} Rac8 {[%emt 0:00:30]} 16. Qa4 {[%emt 0:00:30]} c4 {[%emt 0:00:30]} 17. Bxe4 {[%emt 0:00:30]} dxe4 {[%emt 0:00:30]} 18. Nd2 {[%emt 0:00:30]} a6 {[%emt 0:00:30]} 19. Ncxe4 {[%emt 0:00:30]} Bxe4 {[%emt 0:00:30]} 20. Nxe4 {[%emt 0:00:30]} Qxe4 {[%emt 0:00:30]} 21. Qxd7 {[%emt 0:00:30]} Rfd8 {[%emt 0:00:30]} 22. Qa4 {[%emt 0:00:30]} Ra8 {[%emt 0:00:30]} 23. Qxc4 {[%emt 0:00:30]} b5 {[%emt 0:00:30]} 24. Qc6 {[%emt 0:00:30]} Qd3 {[%emt 0:00:30]} 25. Qc2 {[%emt 0:00:30]} Qxc2 {[%emt 0:00:30]} 26. Rxc2 {[%emt 0:00:30]} Rac8 {[%emt 0:00:30]} 27. Rec1 {[%emt 0:00:30]} Rxc2 {[%emt 0:00:30]} 28. Rxc2 {[%emt 0:00:30]} Kf8 {[%emt 0:00:30]} 29. Kf1 {[%emt 0:00:30]} Ke7 {[%emt 0:00:30]} 30. Ke2 {[%emt 0:00:30]} Kd6 {[%emt 0:00:30]} 31. Kd3 {[%emt 0:00:30]} f6 {[%emt 0:00:30]} 32. e4 {[%emt 0:00:30]} Rd7 {[%emt 0:00:30]} 33. Rc5 {[%emt 0:00:30]} Re7 {[%emt 0:00:30]} 34. f4 {[%emt 0:00:30]} g5 {[%emt 0:00:30]} 35. Rd5+ {[%emt 0:00:30]} Kc6 {[%emt 0:00:30]} 36. Rf5 {[%emt 0:00:30]} Rf7 {[%emt 0:00:30]} 37. d5+ {[%emt 0:00:30]} Kd6 {[%emt 0:00:30]} 38. g3 {[%emt 0:00:30]} gxf4 {[%emt 0:00:30]} 39. gxf4 {[%emt 0:00:30]} Ke7 {[%emt 0:00:30]} 40. e5 {[%emt 0:00:30]} Ke8 {[%emt 0:00:30]} 1-0

[Event "Djerba Festival Open-B 2025"]
[Site "Djerba"]
[Date "2025.02.18"]
[Round "4.27"]
[White "Mallah, Abderrahmane"]
[Black "Abokrais, Kaled"]
[Result "0-1"]
[Annotator "NA"]
[ECO "B32"]
[WhiteElo "1556"]
[BlackElo "1902"]
[PlyCount "54"]
[EventDate "2025.02.15"]
[EventType "swiss"]
[EventCountry "TUN"]
[SourceTitle "playchess.com"]
[Source "ChessBase"]
[SourceQuality "1"]
[TimeControl "5400+30"]

1. e4 {[%emt 0:00:01]} c5 {[%emt 0:03:03]} 2. Nf3 {[%emt 0:00:13]} Nc6 {[%emt 0:00:46]} 3. d4 {[%emt 0:00:07]} cxd4 {[%emt 0:00:07]} 4. Nxd4 {[%emt 0:00:08]} e5 {[%emt 0:00:32]} 5. Nb5 {[%emt 0:00:09]} d6 {[%emt 0:00:21]} 6. N1c3 {[%emt 0:00:11]} a6 {[%emt 0:00:00]} 7. Na3 {[%emt 0:00:11]} h6 {[%emt 0:00:59]} 8. Nd5 {[%emt 0:01:09]} Nf6 {[%emt 0:00:10]} 9. Nxf6+ {[%emt 0:00:33]} Qxf6 {[%emt 0:00:02]} 10. Nc4 {[%emt 0:02:29]} b5 {[%emt 0:01:57]} 11. Nb6 {[%emt 0:01:07]} Rb8 {[%emt 0:00:10]} 12. Nxc8 {[%emt 0:00:43]} Rxc8 {[%emt 0:00:00]} 13. Be2 {[%emt 0:01:45]} Qg6 {[%emt 0:00:45]} 14. Bf3 {[%emt 0:05:33]} Nd4 {[%emt 0:00:14]} 15. c3 {[%emt 0:01:31]} Nxf3+ {[%emt 0:00:29]} 16. Qxf3 {[%emt 0:00:09]} Be7 {[%emt 0:00:10]} 17. O-O {[%emt 0:01:21]} O-O {[%emt 0:00:12]} 18. Be3 {[%emt 0:02:31]} Rc4 {[%emt 0:00:27]} 19. Qe2 {[%emt 0:09:49]} Qxe4 {[%emt 0:00:36]} 20. f3 {[%emt 0:00:29]} Qg6 {[%emt 0:01:22]} 21. a4 {[%emt 0:00:53]} Qe6 {[%emt 0:05:40]} 22. axb5 {[%emt 0:04:34]} axb5 {[%emt 0:00:10]} 23. Rfc1 {[%emt 0:07:03]} Rfc8 {[%emt 0:00:54]} 24. Bd2 {[%emt 0:13:41]} Qd5 {[%emt 0:05:19]} 25. Rd1 {[%emt 0:03:58]} Qb7 {[%emt 0:01:02]} 26. b3 {[%emt 0:04:23]} R4c6 {[%emt 0:01:04]} 27. Ra5 {[%emt 0:01:53]} Qb6+ {[%emt 0:00:45]} 0-1

[Event "Djerba Festival Open-B 2025"]
[Site "Djerba"]
[Date "2025.02.18"]
[Round "4.28"]
[White "MEZGOURI NOUREDDINE"]
[Black "Guinet, Stephane"]
[Result "1-0"]
[Annotator "NA"]
[ECO "A85"]
[WhiteElo "1891"]
[BlackElo "1617"]
[PlyCount "41"]
[EventDate "2025.02.15"]
[EventType "swiss"]
[EventCountry "TUN"]
[SourceTitle "playchess.com"]
[Source "ChessBase"]
[SourceQuality "1"]
[TimeControl "5400+30"]

1. d4 {[%emt 0:00:09]} f5 {[%emt 0:00:09]} 2. c4 {[%emt 0:00:15]} Nf6 {[%emt 0:00:07]} 3. Nc3 {[%emt 0:00:10]} g6 {[%emt 0:00:11]} 4. Bf4 {[%emt 0:00:17]} d6 {[%emt 0:00:21]} 5. Nf3 {[%emt 0:00:27]} Bg7 {[%emt 0:00:35]} 6. e3 {[%emt 0:00:23]} O-O {[%emt 0:00:33]} 7. Qb3 {[%emt 0:01:03]} h6 {[%emt 0:02:33]} 8. h3 {[%emt 0:03:40]} Kh7 {[%emt 0:04:26]} 9. O-O-O {[%emt 0:02:45]} e6 {[%emt 1:26:05]} 10. Be2 {[%emt 0:02:32]} b6 {[%emt 0:00:00]} 11. g4 {[%emt 0:01:07]} fxg4 {[%emt 0:00:00]} 12. hxg4 {[%emt 0:00:35]} Bb7 {[%emt 0:00:00]} 13. Ng5+ {[%emt 0:04:36]} Kg8 {[%emt 0:00:00]} 14. Nxe6 {[%emt 0:00:10]} Qe7 {[%emt 0:00:00]} 15. Nxf8 {[%emt 0:02:44]} Bxh1 {[%emt 0:00:00]} 16. Nxg6 {[%emt 0:00:14]} Qf7 {[%emt 0:00:00]} 17. Nh4 {[%emt 0:00:21]} Bb7 {[%emt 0:00:00]} 18. Nf5 {[%emt 0:00:14]} Nc6 {[%emt 0:00:00]} 19. Bxh6 {[%emt 0:00:39]} Na5 {[%emt 0:00:00]} 20. Qc2 {[%emt 0:00:47]} Bf8 {[%emt 0:00:00]} 21. d5 {[%emt 0:01:00]} 1-0

[Event "Djerba Festival Open-B 2025"]
[Site "Djerba"]
[Date "2025.02.21"]
[Round "5.1"]
[White "Lebret, Jean-Michel"]
[Black "Rafik yassine"]
[Result "0-1"]
[Annotator "RC"]
[ECO "C02"]
[WhiteElo "1995"]
[BlackElo "1909"]
[PlyCount "60"]
[EventDate "2025.02.15"]
[EventType "swiss"]
[EventCountry "TUN"]
[SourceTitle "playchess.com"]
[Source "ChessBase"]
[SourceQuality "1"]
[TimeControl "5400+30"]

1. e4 {[%emt 0:00:07]} e6 {[%emt 0:00:22]} 2. d4 {[%emt 0:00:15]} d5 {[%emt 0:00:14]} 3. e5 {[%emt 0:00:12]} c5 {[%emt 0:00:18]} 4. c3 {[%emt 0:00:11]} Qb6 {[%emt 0:00:14]} 5. Nf3 {[%emt 0:00:27]} Nc6 {[%emt 0:00:22]} 6. a3 {[%emt 0:00:57]} Nh6 {[%emt 0:00:23]} 7. b4 {[%emt 1:31:51]} cxd4 {[%emt 0:00:13]} 8. cxd4 {[%emt 0:00:00]} Nf5 {[%emt 0:00:09]} 9. Bb2 {[%emt 0:00:00]} Bd7 {[%emt 0:00:33]} 10. Be2 {[%emt 0:00:00]} Be7 {[%emt 0:00:22]} 11. O-O {[%emt 0:00:00]} O-O {[%emt 0:00:08]} 12. Bd3 {[%emt 0:00:00]} a5 {[%emt 0:01:18]} 13. Bxf5 {[%emt 0:00:00]} exf5 {[%emt 0:00:13]} 14. Nc3 {[%emt 0:00:00]} axb4 {[%emt 0:00:50]} 15. Nxd5 {[%emt 0:00:00]} Qd8 {[%emt 0:00:26]} 16. Nxe7+ {[%emt 0:00:00]} Nxe7 {[%emt 0:00:43]} 17. d5 {[%emt 0:00:00]} Bb5 {[%emt 0:02:18]} 18. d6 {[%emt 0:00:00]} Bxf1 {[%emt 0:01:54]} 19. dxe7 {[%emt 0:00:00]} Qxe7 {[%emt 0:00:15]} 20. Kxf1 {[%emt 0:00:00]} bxa3 {[%emt 0:00:18]} 21. Bd4 {[%emt 0:00:00]} b5 {[%emt 0:05:14]} 22. Nd2 {[%emt 0:00:00]} Qb4 {[%emt 0:03:03]} 23. Nb3 {[%emt 0:00:00]} Rfd8 {[%emt 0:01:11]} 24. Qf3 {[%emt 0:00:00]} Rac8 {[%emt 0:03:20]} 25. Rd1 {[%emt 0:00:00]} Qc4+ {[%emt 0:07:05]} 26. Ke1 {[%emt 0:00:00]} f6 {[%emt 0:04:13]} 27. Ba1 {[%emt 0:00:00]} fxe5 {[%emt 0:04:42]} 28. Rxd8+ {[%emt 0:00:00]} Rxd8 {[%emt 0:00:16]} 29. Bxe5 {[%emt 0:00:00]} Re8 {[%emt 0:04:46]} 30. Qe3 {[%emt 0:00:00]} f4 {[%emt 0:00:56]} 0-1

[Event "Djerba Festival Open-B 2025"]
[Site "Djerba"]
[Date "2025.02.21"]
[Round "5.2"]
[White "Zenaidi, Sadok"]
[Black "Guirat, Saber"]
[Result "1-0"]
[Annotator "RC"]
[ECO "B96"]
[WhiteElo "1872"]
[BlackElo "1956"]
[PlyCount "59"]
[EventDate "2025.02.15"]
[EventType "swiss"]
[EventCountry "TUN"]
[SourceTitle "playchess.com"]
[Source "ChessBase"]
[SourceQuality "1"]
[TimeControl "5400+30"]

1. e4 {[%emt 0:00:02]} c5 {[%emt 0:00:01]} 2. Nf3 {[%emt 0:00:15]} d6 {[%emt 0:00:02]} 3. d4 {[%emt 0:00:28]} cxd4 {[%emt 0:00:03]} 4. Nxd4 {[%emt 0:00:09]} Nf6 {[%emt 0:00:02]} 5. Nc3 {[%emt 0:00:05]} a6 {[%emt 0:00:11]} 6. Bg5 {[%emt 0:00:05]} e6 {[%emt 0:00:05]} 7. f4 {[%emt 0:00:24]} h6 {[%emt 0:00:16]} 8. Bxf6 {[%emt 0:00:28]} Qxf6 {[%emt 0:00:03]} 9. Qd2 {[%emt 0:00:23]} Be7 {[%emt 0:02:14]} 10. Bd3 {[%emt 0:00:35]} Nc6 {[%emt 0:01:07]} 11. Nf3 {[%emt 0:01:28]} g5 {[%emt 0:05:37]} 12. g3 {[%emt 0:09:45]} b5 {[%emt 0:04:46]} 13. O-O-O {[%emt 0:00:49]} Bb7 {[%emt 0:07:02]} 14. Rhf1 {[%emt 0:08:42]} Qg7 {[%emt 0:08:42]} 15. Rde1 {[%emt 0:09:00]} O-O-O {[%emt 0:03:49]} 16. Nd5 {[%emt 0:01:23]} exd5 {[%emt 0:01:08]} 17. exd5 {[%emt 0:00:07]} Bf6 {[%emt 0:00:15]} 18. dxc6 {[%emt 0:00:53]} Bxb2+ {[%emt 0:00:13]} 19. Kb1 {[%emt 0:00:43]} Bxc6 {[%emt 0:01:14]} 20. Qa5 {[%emt 0:01:07]} Kb7 {[%emt 0:02:45]} 21. Re7+ {[%emt 0:00:26]} Rd7 {[%emt 0:03:20]} 22. Rxd7+ {[%emt 0:02:21]} Bxd7 {[%emt 0:00:02]} 23. Be4+ {[%emt 0:00:14]} Bc6 {[%emt 0:02:30]} 24. Bxc6+ {[%emt 0:00:42]} Kxc6 {[%emt 0:00:02]} 25. Qxa6+ {[%emt 0:00:14]} Kc7 {[%emt 0:04:32]} 26. Qa7+ {[%emt 0:00:47]} Kc6 {[%emt 0:01:45]} 27. Qa6+ {[%emt 0:00:46]} Kc7 {[%emt 0:00:02]} 28. Re1 {[%emt 0:03:42]} Bf6 {[%emt 0:04:08]} 29. Nd4 {[%emt 0:00:26]} Bd8 {[%emt 0:12:04]} 30. Nxb5+ {[%emt 0:01:03]} 1-0

[Event "Djerba Festival Open-B 2025"]
[Site "Djerba"]
[Date "2025.02.21"]
[Round "5.3"]
[White "Zouaghi, Ahmed"]
[Black "Azreug, Lazhar"]
[Result "0-1"]
[Annotator "RC"]
[ECO "B30"]
[WhiteElo "1919"]
[BlackElo "1793"]
[PlyCount "98"]
[EventDate "2025.02.15"]
[EventType "swiss"]
[EventCountry "TUN"]
[SourceTitle "playchess.com"]
[Source "ChessBase"]
[SourceQuality "1"]
[TimeControl "5400+30"]

1. e4 c5 {[%emt 0:05:08]} 2. Nc3 {[%emt 0:00:12]} Nc6 {[%emt 0:00:06]} 3. Bb5 {[%emt 0:00:47]} Nd4 {[%emt 0:00:05]} 4. Nf3 {[%emt 0:00:16]} e6 {[%emt 0:00:05]} 5. O-O {[%emt 0:01:21]} a6 {[%emt 0:00:02]} 6. Bd3 {[%emt 0:00:35]} Nxf3+ {[%emt 0:00:02]} 7. Qxf3 {[%emt 0:00:14]} Qc7 {[%emt 0:00:09]} 8. b3 {[%emt 0:06:49]} Bd6 {[%emt 0:00:12]} 9. Qh3 {[%emt 0:00:23]} Be5 {[%emt 0:00:06]} 10. Bb2 {[%emt 0:01:08]} Ne7 {[%emt 0:00:37]} 11. Nd1 {[%emt 0:03:27]} Ng6 {[%emt 0:00:08]} 12. g3 {[%emt 0:09:10]} b6 {[%emt 0:11:18]} 13. Re1 {[%emt 0:09:59]} h5 {[%emt 0:11:06]} 14. Qf1 {[%emt 0:10:26]} h4 {[%emt 0:03:53]} 15. f4 {[%emt 0:09:17]} Bd4+ {[%emt 0:12:46]} 16. Bxd4 {[%emt 0:09:57]} cxd4 {[%emt 0:00:03]} 17. Qf2 {[%emt 0:01:17]} hxg3 {[%emt 0:01:54]} 18. hxg3 {[%emt 0:00:53]} Qc5 {[%emt 0:07:22]} 19. Nb2 {[%emt 0:04:15]} Bb7 {[%emt 0:10:48]} 20. Rac1 {[%emt 0:11:39]} Qh5 {[%emt 0:15:33]} 21. Qg2 {[%emt 0:00:52]} e5 {[%emt 0:05:56]} 22. f5 {[%emt 0:03:58]} Ne7 {[%emt 0:05:06]} 23. Nc4 {[%emt 0:01:33]} Bc6 {[%emt 0:03:47]} 24. Nxe5 {[%emt 0:02:19]} d6 {[%emt 0:00:25]} 25. Nxc6 {[%emt 0:02:19]} Nxc6 {[%emt 0:00:18]} 26. e5 {[%emt 0:01:03]} d5 {[%emt 0:03:22]} 27. a3 {[%emt 0:05:38]} O-O-O {[%emt 0:00:18]} 28. Bxa6+ {[%emt 0:00:11]} Kc7 {[%emt 0:00:14]} 29. Bd3 {[%emt 0:00:54]} Qg4 {[%emt 0:01:27]} 30. Kf2 {[%emt 0:03:24]} Rh3 {[%emt 0:00:24]} 31. Rh1 {[%emt 0:00:42]} Rxh1 {[%emt 0:00:26]} 32. Rxh1 {[%emt 0:00:11]} Nxe5 {[%emt 0:00:13]} 33. Rh4 {[%emt 0:01:18]} Qd1 {[%emt 0:01:16]} 34. Be2 {[%emt 0:00:30]} Qxd2 {[%emt 0:00:05]} 35. Qf1 {[%emt 0:00:30]} Re8 {[%emt 0:02:29]} 36. Qd1 {[%emt 0:00:21]} Qe3+ {[%emt 0:00:27]} 37. Kf1 {[%emt 0:00:37]} Nc6 {[%emt 0:00:51]} 38. Qe1 {[%emt 0:00:25]} Re5 {[%emt 0:00:31]} 39. Qf2 {[%emt 0:01:10]} Qc1+ {[%emt 0:00:21]} 40. Kg2 {[%emt 0:00:00]} Qxc2 {[%emt 0:00:13]} 41. Bf3 {[%emt 0:00:16]} d3 {[%emt 0:00:35]} 42. Qxc2 {[%emt 0:00:35]} dxc2 {[%emt 0:00:02]} 43. Rh1 {[%emt 0:00:12]} d4 {[%emt 0:00:13]} 44. Rc1 {[%emt 0:00:41]} d3 {[%emt 0:00:02]} 45. b4 {[%emt 0:00:41]} Nd4 {[%emt 0:00:14]} 46. Bd1 {[%emt 0:00:33]} Kd6 {[%emt 0:00:37]} 47. Kf2 {[%emt 0:00:30]} d2 {[%emt 0:00:20]} 48. Rxc2 {[%emt 0:00:20]} Nxc2 {[%emt 0:00:02]} 49. Bxc2 {[%emt 0:00:02]} Re1 {[%emt 0:00:10]} 0-1

[Event "Djerba Festival Open-B 2025"]
[Site "Djerba"]
[Date "2025.02.21"]
[Round "5.4"]
[White "Schmittheisler, Guillaume"]
[Black "Kole, Arda"]
[Result "1/2-1/2"]
[Annotator "NA RC"]
[ECO "E08"]
[WhiteElo "1888"]
[BlackElo "1848"]
[PlyCount "51"]
[EventDate "2025.02.15"]
[EventType "swiss"]
[EventCountry "TUN"]
[SourceTitle "playchess.com"]
[Source "ChessBase"]
[SourceQuality "1"]
[TimeControl "5400+30"]

1. d4 {[%emt 0:00:03]} Nf6 {[%emt 0:01:43]} 2. Nf3 {[%emt 0:00:13]} e6 {[%emt 0:00:45]} 3. g3 {[%emt 0:01:00]} d5 {[%emt 0:00:29]} 4. c4 {[%emt 0:00:44]} Bb4+ {[%emt 0:01:45]} 5. Bd2 {[%emt 0:00:03]} Be7 {[%emt 0:00:06]} 6. Bg2 {[%emt 0:00:16]} O-O {[%emt 0:00:29]} 7. O-O {[%emt 0:00:05]} c6 {[%emt 0:00:11]} 8. Qc2 {[%emt 0:05:18]} Nbd7 {[%emt 0:01:47]} 9. Bf4 {[%emt 0:07:11]} Nh5 {[%emt 0:17:55]} 10. Bd2 {[%emt 0:00:50]} Nhf6 {[%emt 0:00:18]} 11. Bf4 {[%emt 0:00:04]} Ne4 {[%emt 0:10:00]} 12. Nc3 {[%emt 0:04:39]} g5 {[%emt 0:03:58]} 13. Be3 {[%emt 0:06:53]} f5 {[%emt 0:04:39]} 14. Nxe4 {[%emt 0:11:49]} dxe4 {[%emt 0:03:35]} 15. Ne5 {[%emt 0:00:25]} Nxe5 {[%emt 0:12:16]} 16. dxe5 {[%emt 0:00:04]} Bd7 {[%emt 0:05:14]} 17. Rad1 {[%emt 0:04:16]} Qc7 {[%emt 0:01:09]} 18. Qd2 {[%emt 0:03:37]} Rfd8 {[%emt 0:07:26]} 19. Bxg5 {[%emt 0:01:06]} Be8 {[%emt 0:00:29]} 20. Qe3 {[%emt 0:13:28]} Bg6 {[%emt 0:08:10]} 21. h4 {[%emt 0:14:00]} Kf7 {[%emt 0:08:38]} 22. Bxe7 {[%emt 0:08:07]} Qxe7 {[%emt 0:00:08]} 23. Qh6 {[%emt 0:01:01]} Qf8 {[%emt 0:01:18]} 24. Qg5 {[%emt 0:04:01]} Qe7 {[%emt 0:00:14]} 25. Qh6 {[%emt 0:01:45]} Qf8 {[%emt 0:00:13]} 26. Qg5 {[%emt 0:12:32]} 1/2-1/2

[Event "Djerba Festival Open-B 2025"]
[Site "Djerba"]
[Date "2025.02.21"]
[Round "5.5"]
[White "Cornileau, Raphael"]
[Black "Cherad, Mohammed"]
[Result "0-1"]
[Annotator "NA RC"]
[ECO "C55"]
[WhiteElo "1864"]
[BlackElo "1768"]
[PlyCount "84"]
[EventDate "2025.02.15"]
[EventType "swiss"]
[EventCountry "TUN"]
[SourceTitle "playchess.com"]
[Source "ChessBase"]
[SourceQuality "1"]
[TimeControl "5400+30"]

1. e4 {[%emt 0:02:49]} e5 {[%emt 0:00:11]} 2. Nf3 {[%emt 0:00:07]} Nf6 {[%emt 0:00:09]} 3. Nc3 {[%emt 0:00:53]} Nc6 {[%emt 0:00:11]} 4. Bc4 {[%emt 0:00:23]} Nxe4 {[%emt 0:00:36]} 5. Nxe4 {[%emt 0:00:07]} d5 {[%emt 0:00:12]} 6. Bd3 {[%emt 0:01:35]} dxe4 {[%emt 0:00:16]} 7. Bxe4 {[%emt 0:00:04]} Bd7 {[%emt 0:00:40]} 8. O-O {[%emt 0:00:45]} Bd6 {[%emt 0:01:42]} 9. d4 {[%emt 0:00:26]} exd4 {[%emt 0:06:28]} 10. Nxd4 {[%emt 0:00:33]} O-O {[%emt 1:25:05]} 11. Nxc6 {[%emt 1:28:18]} Qh4 {[%emt 0:00:00]} 12. Ne7+ {[%emt 0:00:00]} Qxe7 {[%emt 0:00:00]} 13. Bxb7 {[%emt 0:00:00]} Rad8 {[%emt 0:00:00]} 14. Qf3 {[%emt 0:00:00]} Bb5 {[%emt 0:00:00]} 15. Qe4 {[%emt 0:00:00]} Qxe4 {[%emt 0:00:00]} 16. Bxe4 {[%emt 0:00:00]} Bxf1 {[%emt 0:00:00]} 17. Kxf1 {[%emt 0:00:00]} Be5 {[%emt 0:00:00]} 18. Bf3 {[%emt 0:00:00]} c5 {[%emt 0:00:00]} 19. c4 {[%emt 0:00:00]} Rb8 {[%emt 0:00:00]} 20. Rb1 {[%emt 0:00:00]} a5 {[%emt 0:00:00]} 21. Bc6 {[%emt 0:00:00]} Rfd8 {[%emt 0:00:00]} 22. b3 {[%emt 0:00:00]} Rd1+ {[%emt 0:00:00]} 23. Ke2 {[%emt 0:00:00]} Rh1 {[%emt 0:00:00]} 24. Be4 {[%emt 0:00:00]} a4 {[%emt 0:00:00]} 25. Kd3 {[%emt 0:00:00]} axb3 {[%emt 0:00:00]} 26. axb3 {[%emt 0:00:00]} Bf4 {[%emt 0:00:00]} 27. Bxf4 {[%emt 0:00:00]} Rxb1 {[%emt 0:00:00]} 28. Bxb8 {[%emt 0:00:00]} Rxb3+ {[%emt 0:00:00]} 29. Kc2 {[%emt 0:00:00]} Rxb8 {[%emt 0:00:00]} 30. Bd5 {[%emt 0:00:00]} Kf8 {[%emt 0:00:00]} 31. Kd3 {[%emt 0:00:00]} Ke7 {[%emt 0:00:00]} 32. h4 {[%emt 0:00:00]} f6 {[%emt 0:00:00]} 33. h5 {[%emt 0:00:00]} Kd6 {[%emt 0:00:00]} 34. Ke4 {[%emt 0:00:00]} Re8+ {[%emt 0:00:00]} 35. Kf4 {[%emt 0:00:00]} Re5 {[%emt 0:00:00]} 36. Bf3 {[%emt 0:00:00]} g5+ {[%emt 0:00:00]} 37. hxg6 {[%emt 0:00:00]} hxg6 {[%emt 0:00:00]} 38. g4 {[%emt 0:00:00]} g5+ {[%emt 0:00:00]} 39. Kg3 {[%emt 0:00:00]} Re1 {[%emt 0:00:00]} 40. Bd5 {[%emt 0:00:00]} Rd1 {[%emt 0:00:00]} 41. Bf7 {[%emt 0:00:00]} Ke5 {[%emt 0:00:00]} 42. Kf3 {[%emt 0:00:00]} Kd4 {[%emt 0:16:00]} 0-1

[Event "Djerba Festival Open-B 2025"]
[Site "Djerba"]
[Date "2025.02.21"]
[Round "5.6"]
[White "Bensadi, Lotfi"]
[Black "Zerarga, Imene"]
[Result "1-0"]
[Annotator "RC"]
[ECO "B24"]
[WhiteElo "1971"]
[BlackElo "1831"]
[PlyCount "53"]
[EventDate "2025.02.15"]
[EventType "swiss"]
[EventCountry "TUN"]
[SourceTitle "playchess.com"]
[Source "ChessBase"]
[SourceQuality "1"]
[TimeControl "5400+30"]

1. e4 {[%emt 1:31:00]} c5 {[%emt 1:31:00]} 2. Nc3 {[%emt 0:00:30]} d6 {[%emt 0:00:30]} 3. f4 {[%emt 0:00:30]} g6 {[%emt 0:00:30]} 4. Nf3 {[%emt 0:00:30]} Bg7 {[%emt 0:00:30]} 5. g3 {[%emt 0:00:30]} Nc6 {[%emt 0:00:30]} 6. Bg2 {[%emt 0:00:30]} Nf6 {[%emt 0:00:30]} 7. O-O {[%emt 0:00:30]} Rb8 {[%emt 0:00:30]} 8. a4 {[%emt 0:00:30]} a6 {[%emt 0:00:30]} 9. h3 {[%emt 0:00:30]} O-O {[%emt 0:00:30]} 10. g4 {[%emt 0:00:30]} b5 {[%emt 0:00:30]} 11. axb5 {[%emt 0:00:30]} axb5 {[%emt 0:00:30]} 12. d3 {[%emt 0:00:30]} Nd7 {[%emt 0:00:30]} 13. Kh1 {[%emt 0:00:30]} b4 {[%emt 0:00:30]} 14. Ne2 {[%emt 0:00:30]} Qb6 {[%emt 0:00:30]} 15. f5 {[%emt 0:00:30]} Nde5 {[%emt 0:00:30]} 16. Nf4 {[%emt 0:00:30]} e6 {[%emt 0:00:30]} 17. fxg6 {[%emt 0:00:30]} fxg6 {[%emt 0:00:30]} 18. Ng5 {[%emt 0:00:30]} Nd8 {[%emt 0:00:30]} 19. h4 {[%emt 0:00:30]} Nef7 {[%emt 0:00:30]} 20. Nxf7 {[%emt 0:00:30]} Nxf7 {[%emt 0:00:30]} 21. g5 {[%emt 0:00:30]} Qd8 {[%emt 0:00:30]} 22. Ra7 {[%emt 0:00:30]} Bd7 {[%emt 0:00:30]} 23. Bh3 {[%emt 0:00:30]} Qc8 {[%emt 0:00:30]} 24. Nd5 {[%emt 0:00:30]} exd5 {[%emt 0:00:30]} 25. Bxd7 {[%emt 0:00:30]} Qd8 {[%emt 0:00:30]} 26. Be6 {[%emt 0:00:30]} Qe8 {[%emt 0:00:30]} 27. Rfxf7 {[%emt 0:00:30]} 1-0

[Event "Djerba Festival Open-B 2025"]
[Site "Djerba"]
[Date "2025.02.21"]
[Round "5.7"]
[White "Ktita, Dhafer"]
[Black "Skhiri Youssef"]
[Result "0-1"]
[Annotator "RC"]
[ECO "C63"]
[WhiteElo "1949"]
[BlackElo "1808"]
[PlyCount "114"]
[EventDate "2025.02.15"]
[EventType "swiss"]
[EventCountry "TUN"]
[SourceTitle "playchess.com"]
[Source "ChessBase"]
[SourceQuality "1"]
[TimeControl "5400+30"]

1. e4 {[%emt 0:00:05]} e5 {[%emt 0:00:03]} 2. Nf3 {[%emt 0:00:11]} Nc6 {[%emt 0:00:06]} 3. Bb5 {[%emt 0:00:07]} f5 {[%emt 0:00:27]} 4. d3 {[%emt 0:01:59]} fxe4 {[%emt 0:01:21]} 5. dxe4 {[%emt 0:00:10]} Nf6 {[%emt 0:00:05]} 6. O-O {[%emt 0:04:04]} d6 {[%emt 0:00:24]} 7. Nc3 {[%emt 0:01:00]} Be7 {[%emt 0:00:41]} 8. h3 {[%emt 0:01:22]} O-O {[%emt 0:01:38]} 9. Bc4+ {[%emt 0:04:25]} Kh8 {[%emt 0:00:06]} 10. Ng5 {[%emt 0:00:28]} Qe8 {[%emt 0:04:39]} 11. Ne6 {[%emt 0:00:10]} Qf7 {[%emt 0:04:49]} 12. Nxc7 {[%emt 0:04:46]} Qxc4 {[%emt 0:00:50]} 13. Nxa8 {[%emt 0:00:09]} Nd4 {[%emt 0:03:53]} 14. Qd3 {[%emt 0:10:09]} Be6 {[%emt 0:06:40]} 15. Qxc4 {[%emt 0:00:15]} Bxc4 {[%emt 0:00:54]} 16. Nc7 {[%emt 0:00:13]} Bd8 {[%emt 0:14:02]} 17. N7d5 {[%emt 0:00:35]} Nxd5 {[%emt 0:00:30]} 18. Nxd5 {[%emt 0:03:47]} Bxf1 {[%emt 0:02:12]} 19. Kxf1 {[%emt 0:00:13]} Nxc2 {[%emt 0:00:10]} 20. Rb1 {[%emt 0:00:25]} Bb6 {[%emt 0:13:28]} 21. Nxb6 {[%emt 0:06:09]} axb6 {[%emt 0:00:03]} 22. Bd2 {[%emt 0:00:21]} Rc8 {[%emt 0:03:36]} 23. Rc1 {[%emt 0:00:09]} Kg8 {[%emt 0:06:12]} 24. Ke2 {[%emt 0:05:22]} Nd4+ {[%emt 0:01:14]} 25. Kd3 {[%emt 0:00:36]} Rxc1 {[%emt 0:06:24]} 26. Bxc1 {[%emt 0:00:11]} b5 {[%emt 0:01:02]} 27. Be3 {[%emt 0:10:37]} Nc6 {[%emt 0:01:36]} 28. f4 {[%emt 0:04:54]} Kf7 {[%emt 0:06:07]} 29. f5 {[%emt 0:00:49]} Ke7 {[%emt 0:13:57]} 30. g4 {[%emt 0:00:45]} h6 {[%emt 0:01:43]} 31. h4 {[%emt 0:02:20]} Kd7 {[%emt 0:00:32]} 32. g5 {[%emt 0:00:54]} h5 {[%emt 0:01:18]} 33. g6 {[%emt 0:01:04]} Ke8 {[%emt 0:03:09]} 34. a4 {[%emt 0:01:18]} bxa4 {[%emt 0:00:50]} 35. Kc4 {[%emt 0:00:07]} Ne7 {[%emt 0:01:43]} 36. Bg5 {[%emt 0:03:22]} d5+ {[%emt 0:00:52]} 37. exd5 {[%emt 0:00:08]} Nxf5 {[%emt 0:00:03]} 38. d6 {[%emt 0:03:26]} e4 {[%emt 0:01:39]} 39. Kd5 {[%emt 0:00:14]} Kd7 {[%emt 0:01:02]} 40. Kxe4 {[%emt 0:00:22]} Nxd6+ {[%emt 0:00:00]} 41. Kd5 {[%emt 0:02:59]} Nf5 {[%emt 0:00:29]} 42. Kc5 {[%emt 0:00:34]} Ne7 {[%emt 0:00:30]} 43. Kb6 {[%emt 0:01:14]} Nxg6 {[%emt 0:00:03]} 44. Kxb7 {[%emt 0:00:07]} Ne5 {[%emt 0:00:09]} 45. Be3 {[%emt 0:01:09]} g6 {[%emt 0:01:14]} 46. Ka6 {[%emt 0:00:14]} Kc6 {[%emt 0:00:14]} 47. Bd4 {[%emt 0:00:51]} Kd5 {[%emt 0:00:31]} 48. Bc3 {[%emt 0:01:28]} Nc4 {[%emt 0:00:42]} 49. Kb5 {[%emt 0:01:05]} a3 {[%emt 0:00:34]} 50. b3 {[%emt 0:01:35]} Ne3 {[%emt 0:00:25]} 51. Ka6 {[%emt 0:02:57]} a2 {[%emt 0:00:17]} 52. b4 {[%emt 0:00:08]} Kc4 {[%emt 0:00:11]} 53. Bb2 {[%emt 0:01:15]} Kb3 {[%emt 0:00:19]} 54. Ba1 {[%emt 0:00:27]} Nc2 {[%emt 0:00:30]} 55. Be5 {[%emt 0:00:08]} Kxb4 {[%emt 0:00:09]} 56. Kb6 {[%emt 0:00:13]} Kc4 {[%emt 0:00:07]} 57. Kc6 {[%emt 0:00:09]} Nd4+ {[%emt 0:00:03]} 0-1